{"text_format":"3","workbook":"xlsx","n_sheets":2,"sheets":["Тракер за отслабване","изчисления"],"not_rendered":{"charts":1,"defined_names":10},"read":"whole","date_system":"1900"}

{"sheet":"Тракер за отслабване","index":0,"n_rows":19,"n_cols":9,"rows_kept":19,"merged":[[0,3,0,7],[0,8,0,9],[1,3,2,9]]}
[null,"ЦЕЛЕВО ТЕГЛО","ИЗГЛЕД НА ДИАГРАМА","Име",{"$nulls":4},"ОТСЛАБВАНЕ"]
[{"$nulls":3},"ПРОСЛЕДЯВАНЕ"]
[null,{"v":172,"d":"172.0"},"СЕДМИЧЕН"]
[null,"ПОКАЗВАНЕ НА ЦЕЛЕВОТО ТЕГЛО","Да"]
[null,"Диаграмата за проследяване на теглото, която проследява текущото тегло е в тази клетка. Изберете \"Да\" в клетка С4, за да покажете линията за целевото тегло над областта на диаграмата."]
[]
[null,"ДАТА","ТЕГЛО"]
[null,{"$f":"TODAY()-77","v":"2022-01-14"},{"v":176,"d":"176.0"}]
[null,{"$f":"TODAY()-70","v":"2022-01-21"},{"v":176,"d":"176.0"}]
[null,{"$f":"TODAY()-63","v":"2022-01-28"},177.6]
[null,{"$f":"TODAY()-56","v":"2022-02-04"},176.5]
[null,{"$f":"TODAY()-49","v":"2022-02-11"},176.1]
[null,{"$f":"TODAY()-42","v":"2022-02-18"},{"v":174,"d":"174.0"}]
[null,{"$f":"TODAY()-35","v":"2022-02-25"},173.5]
[null,{"$f":"TODAY()-28","v":"2022-03-04"},{"v":173,"d":"173.0"}]
[null,{"$f":"TODAY()-21","v":"2022-03-11"},{"v":172,"d":"172.0"}]
[null,{"$f":"TODAY()-14","v":"2022-03-18"},{"v":172,"d":"172.0"}]
[null,{"$f":"TODAY()-7","v":"2022-03-25"},{"v":173,"d":"173.0"}]
[null,{"$f":"TODAY()","v":"2022-04-01"},{"v":172,"d":"172.0"}]

{"sheet":"изчисления","index":1,"n_rows":107,"n_cols":17,"rows_kept":107,"hidden":true}
["*** Листът трябва да остане скрит ***"]
[]
[{"$f":"COUNTIF(A5:A107,FALSE)","v":12},"Периоди","Стойности",{"$nulls":3},{"$f":"COUNTIF(H5:H28,\">\"&0)","v":4},"Периоди",null,"Стойности"]
[null,"Седмица",null,null,{"$f":"IFERROR(IF(ShowGoalWeight=\"Да\", TRUE, FALSE),FALSE)","v":true},null,null,"Месец","Края на месеца"]
[{"$f":"FALSE","v":false},{"$f":"IFERROR(IF(LEN('Тракер за отслабване'!$B8)=0,TODAY(),'Тракер за отслабване'!$B8),TODAY())","v":"2022-01-14"},{"$f":"IFERROR(IF(LEN('Тракер за отслабване'!$C8)=0,ЦелевоТегло,'Тракер за отслабване'!$C8),0)","v":176},{"$f":"IFERROR(IF(MIN(ChartPeriods)=0,TODAY(),MIN(ChartPeriods)),TODAY())","v":"2022-01-14"},{"$f":"IFERROR(IF($A$5,0,IF($E$4,ЦелевоТегло,NA())),0)","v":172},null,null,{"$f":"IFERROR(IF($A$5,TODAY(),DATE(YEAR($B5),MONTH($B5),1)),\"\")","v":"2022-01-01"},{"$f":"IFERROR(IF($A$5,TODAY(),EOMONTH($H5,0)),\"\")","v":"2022-01-31"},{"$f":"IFERROR(IF($A$5,0,AVERAGEIFS(Тегло[ТЕГЛО],Тегло[ДАТА],\">=\"&$H5,Тегло[ДАТА],\"<=\"&$I5)),NA())","v":176.53333333333333}]
[{"$f":"IF((LEN('Тракер за отслабване'!$C9)=0),TRUE)","v":false},{"$f":"IFERROR(IF(A6,0,IF(LEN('Тракер за отслабване'!$B9)=0,0,'Тракер за отслабване'!$B9)),\"\")","v":"2022-01-21"},{"$f":"IFERROR(IF(A6,0,IF(LEN('Тракер за отслабване'!$C9)=0,0,'Тракер за отслабване'!$C9)),\"\")","v":176},{"$f":"IFERROR(IF(MAX(ChartPeriods)=0,TODAY(),MAX(ChartPeriods)),TODAY())","v":"2022-04-01"},{"$f":"IFERROR(IF($A$5,0,IF($E$4,ЦелевоТегло,NA())),0)","v":172},null,null,{"$f":"IF($I5+1>MAX($B:$B),NA(),$I5+1)","v":"2022-02-01"},{"$f":"EOMONTH($H6,0)","v":"2022-02-28"},{"$f":"IFERROR(AVERAGEIFS(Тегло[ТЕГЛО],Тегло[ДАТА],\">=\"&$H6,Тегло[ДАТА],\"<=\"&$I6),NA())","v":175.025}]
[{"$f":"IF((LEN('Тракер за отслабване'!$C10)=0),TRUE)","v":false},{"$f":"IFERROR(IF(A7,0,IF(LEN('Тракер за отслабване'!$B10)=0,0,'Тракер за отслабване'!$B10)),\"\")","v":"2022-01-28"},{"$f":"IFERROR(IF(A7,0,IF(LEN('Тракер за отслабване'!$C10)=0,0,'Тракер за отслабване'!$C10)),\"\")","v":177.6},{"$nulls":4},"2022-03-01","2022-03-31",{"$f":"IFERROR(AVERAGEIFS(Тегло[ТЕГЛО],Тегло[ДАТА],\">=\"&$H7,Тегло[ДАТА],\"<=\"&$I7),NA())","v":172.5}]
[{"$f":"IF((LEN('Тракер за отслабване'!$C11)=0),TRUE)","v":false},{"$f":"IFERROR(IF(A8,0,IF(LEN('Тракер за отслабване'!$B11)=0,0,'Тракер за отслабване'!$B11)),\"\")","v":"2022-02-04"},{"$f":"IFERROR(IF(A8,0,IF(LEN('Тракер за отслабване'!$C11)=0,0,'Тракер за отслабване'!$C11)),\"\")","v":176.5},{"$nulls":4},"2022-04-01","2022-04-30",{"$f":"IFERROR(AVERAGEIFS(Тегло[ТЕГЛО],Тегло[ДАТА],\">=\"&$H8,Тегло[ДАТА],\"<=\"&$I8),NA())","v":172}]
[{"$f":"IF((LEN('Тракер за отслабване'!$C12)=0),TRUE)","v":false},{"$f":"IFERROR(IF(A9,0,IF(LEN('Тракер за отслабване'!$B12)=0,0,'Тракер за отслабване'!$B12)),\"\")","v":"2022-02-11"},{"$f":"IFERROR(IF(A9,0,IF(LEN('Тракер за отслабване'!$C12)=0,0,'Тракер за отслабване'!$C12)),\"\")","v":176.1},{"$nulls":4},{"$error":"#N/A"},{"$error":"#N/A"},{"$f":"IFERROR(AVERAGEIFS(Тегло[ТЕГЛО],Тегло[ДАТА],\">=\"&$H9,Тегло[ДАТА],\"<=\"&$I9),NA())","v":{"$error":"#N/A"}}]
[{"$f":"IF((LEN('Тракер за отслабване'!$C13)=0),TRUE)","v":false},{"$f":"IFERROR(IF(A10,0,IF(LEN('Тракер за отслабване'!$B13)=0,0,'Тракер за отслабване'!$B13)),\"\")","v":"2022-02-18"},{"$f":"IFERROR(IF(A10,0,IF(LEN('Тракер за отслабване'!$C13)=0,0,'Тракер за отслабване'!$C13)),\"\")","v":174},{"$nulls":4},{"$error":"#N/A"},{"$error":"#N/A"},{"$f":"IFERROR(AVERAGEIFS(Тегло[ТЕГЛО],Тегло[ДАТА],\">=\"&$H10,Тегло[ДАТА],\"<=\"&$I10),NA())","v":{"$error":"#N/A"}}]
[{"$f":"IF((LEN('Тракер за отслабване'!$C14)=0),TRUE)","v":false},{"$f":"IFERROR(IF(A11,0,IF(LEN('Тракер за отслабване'!$B14)=0,0,'Тракер за отслабване'!$B14)),\"\")","v":"2022-02-25"},{"$f":"IFERROR(IF(A11,0,IF(LEN('Тракер за отслабване'!$C14)=0,0,'Тракер за отслабване'!$C14)),\"\")","v":173.5},{"$nulls":4},{"$error":"#N/A"},{"$error":"#N/A"},{"$f":"IFERROR(AVERAGEIFS(Тегло[ТЕГЛО],Тегло[ДАТА],\">=\"&$H11,Тегло[ДАТА],\"<=\"&$I11),NA())","v":{"$error":"#N/A"}},{"$nulls":6},{"$f":"MAX($B:$B)","v":"2022-04-01"}]
[{"$f":"IF((LEN('Тракер за отслабване'!$C15)=0),TRUE)","v":false},{"$f":"IFERROR(IF(A12,0,IF(LEN('Тракер за отслабване'!$B15)=0,0,'Тракер за отслабване'!$B15)),\"\")","v":"2022-03-04"},{"$f":"IFERROR(IF(A12,0,IF(LEN('Тракер за отслабване'!$C15)=0,0,'Тракер за отслабване'!$C15)),\"\")","v":173},{"$nulls":4},{"$error":"#N/A"},{"$error":"#N/A"},{"$f":"IFERROR(AVERAGEIFS(Тегло[ТЕГЛО],Тегло[ДАТА],\">=\"&$H12,Тегло[ДАТА],\"<=\"&$I12),NA())","v":{"$error":"#N/A"}}]
[{"$f":"IF((LEN('Тракер за отслабване'!$C16)=0),TRUE)","v":false},{"$f":"IFERROR(IF(A13,0,IF(LEN('Тракер за отслабване'!$B16)=0,0,'Тракер за отслабване'!$B16)),\"\")","v":"2022-03-11"},{"$f":"IFERROR(IF(A13,0,IF(LEN('Тракер за отслабване'!$C16)=0,0,'Тракер за отслабване'!$C16)),\"\")","v":172},{"$nulls":4},{"$error":"#N/A"},{"$error":"#N/A"},{"$f":"IFERROR(AVERAGEIFS(Тегло[ТЕГЛО],Тегло[ДАТА],\">=\"&$H13,Тегло[ДАТА],\"<=\"&$I13),NA())","v":{"$error":"#N/A"}}]
[{"$f":"IF((LEN('Тракер за отслабване'!$C17)=0),TRUE)","v":false},{"$f":"IFERROR(IF(A14,0,IF(LEN('Тракер за отслабване'!$B17)=0,0,'Тракер за отслабване'!$B17)),\"\")","v":"2022-03-18"},{"$f":"IFERROR(IF(A14,0,IF(LEN('Тракер за отслабване'!$C17)=0,0,'Тракер за отслабване'!$C17)),\"\")","v":172},{"$nulls":4},{"$error":"#N/A"},{"$error":"#N/A"},{"$f":"IFERROR(AVERAGEIFS(Тегло[ТЕГЛО],Тегло[ДАТА],\">=\"&$H14,Тегло[ДАТА],\"<=\"&$I14),NA())","v":{"$error":"#N/A"}}]
[{"$f":"IF((LEN('Тракер за отслабване'!$C18)=0),TRUE)","v":false},{"$f":"IFERROR(IF(A15,0,IF(LEN('Тракер за отслабване'!$B18)=0,0,'Тракер за отслабване'!$B18)),\"\")","v":"2022-03-25"},{"$f":"IFERROR(IF(A15,0,IF(LEN('Тракер за отслабване'!$C18)=0,0,'Тракер за отслабване'!$C18)),\"\")","v":173},{"$nulls":4},{"$error":"#N/A"},{"$error":"#N/A"},{"$f":"IFERROR(AVERAGEIFS(Тегло[ТЕГЛО],Тегло[ДАТА],\">=\"&$H15,Тегло[ДАТА],\"<=\"&$I15),NA())","v":{"$error":"#N/A"}}]
[{"$f":"IF((LEN('Тракер за отслабване'!$C19)=0),TRUE)","v":false},{"$f":"IFERROR(IF(A16,0,IF(LEN('Тракер за отслабване'!$B19)=0,0,'Тракер за отслабване'!$B19)),\"\")","v":"2022-04-01"},{"$f":"IFERROR(IF(A16,0,IF(LEN('Тракер за отслабване'!$C19)=0,0,'Тракер за отслабване'!$C19)),\"\")","v":172},{"$nulls":4},{"$error":"#N/A"},{"$error":"#N/A"},{"$f":"IFERROR(AVERAGEIFS(Тегло[ТЕГЛО],Тегло[ДАТА],\">=\"&$H16,Тегло[ДАТА],\"<=\"&$I16),NA())","v":{"$error":"#N/A"}}]
[{"$f":"IF((LEN('Тракер за отслабване'!$C20)=0),TRUE)","v":true},{"$f":"IFERROR(IF(A17,0,IF(LEN('Тракер за отслабване'!$B20)=0,0,'Тракер за отслабване'!$B20)),\"\")","v":"00:00:00"},{"$f":"IFERROR(IF(A17,0,IF(LEN('Тракер за отслабване'!$C20)=0,0,'Тракер за отслабване'!$C20)),\"\")","v":0},{"$nulls":4},{"$error":"#N/A"},{"$error":"#N/A"},{"$f":"IFERROR(AVERAGEIFS(Тегло[ТЕГЛО],Тегло[ДАТА],\">=\"&$H17,Тегло[ДАТА],\"<=\"&$I17),NA())","v":{"$error":"#N/A"}}]
[{"$f":"IF((LEN('Тракер за отслабване'!$C21)=0),TRUE)","v":true},{"$f":"IFERROR(IF(A18,0,IF(LEN('Тракер за отслабване'!$B21)=0,0,'Тракер за отслабване'!$B21)),\"\")","v":"00:00:00"},{"$f":"IFERROR(IF(A18,0,IF(LEN('Тракер за отслабване'!$C21)=0,0,'Тракер за отслабване'!$C21)),\"\")","v":0},{"$nulls":4},{"$error":"#N/A"},{"$error":"#N/A"},{"$f":"IFERROR(AVERAGEIFS(Тегло[ТЕГЛО],Тегло[ДАТА],\">=\"&$H18,Тегло[ДАТА],\"<=\"&$I18),NA())","v":{"$error":"#N/A"}}]
[{"$f":"IF((LEN('Тракер за отслабване'!$C22)=0),TRUE)","v":true},{"$f":"IFERROR(IF(A19,0,IF(LEN('Тракер за отслабване'!$B22)=0,0,'Тракер за отслабване'!$B22)),\"\")","v":"00:00:00"},{"$f":"IFERROR(IF(A19,0,IF(LEN('Тракер за отслабване'!$C22)=0,0,'Тракер за отслабване'!$C22)),\"\")","v":0},{"$nulls":4},{"$error":"#N/A"},{"$error":"#N/A"},{"$f":"IFERROR(AVERAGEIFS(Тегло[ТЕГЛО],Тегло[ДАТА],\">=\"&$H19,Тегло[ДАТА],\"<=\"&$I19),NA())","v":{"$error":"#N/A"}}]
[{"$f":"IF((LEN('Тракер за отслабване'!$C23)=0),TRUE)","v":true},{"$f":"IFERROR(IF(A20,0,IF(LEN('Тракер за отслабване'!$B23)=0,0,'Тракер за отслабване'!$B23)),\"\")","v":"00:00:00"},{"$f":"IFERROR(IF(A20,0,IF(LEN('Тракер за отслабване'!$C23)=0,0,'Тракер за отслабване'!$C23)),\"\")","v":0},{"$nulls":4},{"$error":"#N/A"},{"$error":"#N/A"},{"$f":"IFERROR(AVERAGEIFS(Тегло[ТЕГЛО],Тегло[ДАТА],\">=\"&$H20,Тегло[ДАТА],\"<=\"&$I20),NA())","v":{"$error":"#N/A"}}]
[{"$f":"IF((LEN('Тракер за отслабване'!$C24)=0),TRUE)","v":true},{"$f":"IFERROR(IF(A21,0,IF(LEN('Тракер за отслабване'!$B24)=0,0,'Тракер за отслабване'!$B24)),\"\")","v":"00:00:00"},{"$f":"IFERROR(IF(A21,0,IF(LEN('Тракер за отслабване'!$C24)=0,0,'Тракер за отслабване'!$C24)),\"\")","v":0},{"$nulls":4},{"$error":"#N/A"},{"$error":"#N/A"},{"$f":"IFERROR(AVERAGEIFS(Тегло[ТЕГЛО],Тегло[ДАТА],\">=\"&$H21,Тегло[ДАТА],\"<=\"&$I21),NA())","v":{"$error":"#N/A"}}]
[{"$f":"IF((LEN('Тракер за отслабване'!$C25)=0),TRUE)","v":true},{"$f":"IFERROR(IF(A22,0,IF(LEN('Тракер за отслабване'!$B25)=0,0,'Тракер за отслабване'!$B25)),\"\")","v":"00:00:00"},{"$f":"IFERROR(IF(A22,0,IF(LEN('Тракер за отслабване'!$C25)=0,0,'Тракер за отслабване'!$C25)),\"\")","v":0},{"$nulls":4},{"$error":"#N/A"},{"$error":"#N/A"},{"$f":"IFERROR(AVERAGEIFS(Тегло[ТЕГЛО],Тегло[ДАТА],\">=\"&$H22,Тегло[ДАТА],\"<=\"&$I22),NA())","v":{"$error":"#N/A"}}]
[{"$f":"IF((LEN('Тракер за отслабване'!$C26)=0),TRUE)","v":true},{"$f":"IFERROR(IF(A23,0,IF(LEN('Тракер за отслабване'!$B26)=0,0,'Тракер за отслабване'!$B26)),\"\")","v":"00:00:00"},{"$f":"IFERROR(IF(A23,0,IF(LEN('Тракер за отслабване'!$C26)=0,0,'Тракер за отслабване'!$C26)),\"\")","v":0},{"$nulls":4},{"$error":"#N/A"},{"$error":"#N/A"},{"$f":"IFERROR(AVERAGEIFS(Тегло[ТЕГЛО],Тегло[ДАТА],\">=\"&$H23,Тегло[ДАТА],\"<=\"&$I23),NA())","v":{"$error":"#N/A"}}]
[{"$f":"IF((LEN('Тракер за отслабване'!$C27)=0),TRUE)","v":true},{"$f":"IFERROR(IF(A24,0,IF(LEN('Тракер за отслабване'!$B27)=0,0,'Тракер за отслабване'!$B27)),\"\")","v":"00:00:00"},{"$f":"IFERROR(IF(A24,0,IF(LEN('Тракер за отслабване'!$C27)=0,0,'Тракер за отслабване'!$C27)),\"\")","v":0},{"$nulls":4},{"$error":"#N/A"},{"$error":"#N/A"},{"$f":"IFERROR(AVERAGEIFS(Тегло[ТЕГЛО],Тегло[ДАТА],\">=\"&$H24,Тегло[ДАТА],\"<=\"&$I24),NA())","v":{"$error":"#N/A"}}]
[{"$f":"IF((LEN('Тракер за отслабване'!$C28)=0),TRUE)","v":true},{"$f":"IFERROR(IF(A25,0,IF(LEN('Тракер за отслабване'!$B28)=0,0,'Тракер за отслабване'!$B28)),\"\")","v":"00:00:00"},{"$f":"IFERROR(IF(A25,0,IF(LEN('Тракер за отслабване'!$C28)=0,0,'Тракер за отслабване'!$C28)),\"\")","v":0},{"$nulls":4},{"$error":"#N/A"},{"$error":"#N/A"},{"$f":"IFERROR(AVERAGEIFS(Тегло[ТЕГЛО],Тегло[ДАТА],\">=\"&$H25,Тегло[ДАТА],\"<=\"&$I25),NA())","v":{"$error":"#N/A"}}]
[{"$f":"IF((LEN('Тракер за отслабване'!$C29)=0),TRUE)","v":true},{"$f":"IFERROR(IF(A26,0,IF(LEN('Тракер за отслабване'!$B29)=0,0,'Тракер за отслабване'!$B29)),\"\")","v":"00:00:00"},{"$f":"IFERROR(IF(A26,0,IF(LEN('Тракер за отслабване'!$C29)=0,0,'Тракер за отслабване'!$C29)),\"\")","v":0},{"$nulls":4},{"$error":"#N/A"},{"$error":"#N/A"},{"$f":"IFERROR(AVERAGEIFS(Тегло[ТЕГЛО],Тегло[ДАТА],\">=\"&$H26,Тегло[ДАТА],\"<=\"&$I26),NA())","v":{"$error":"#N/A"}}]
[{"$f":"IF((LEN('Тракер за отслабване'!$C30)=0),TRUE)","v":true},{"$f":"IFERROR(IF(A27,0,IF(LEN('Тракер за отслабване'!$B30)=0,0,'Тракер за отслабване'!$B30)),\"\")","v":"00:00:00"},{"$f":"IFERROR(IF(A27,0,IF(LEN('Тракер за отслабване'!$C30)=0,0,'Тракер за отслабване'!$C30)),\"\")","v":0},{"$nulls":4},{"$error":"#N/A"},{"$error":"#N/A"},{"$f":"IFERROR(AVERAGEIFS(Тегло[ТЕГЛО],Тегло[ДАТА],\">=\"&$H27,Тегло[ДАТА],\"<=\"&$I27),NA())","v":{"$error":"#N/A"}}]
[{"$f":"IF((LEN('Тракер за отслабване'!$C31)=0),TRUE)","v":true},{"$f":"IFERROR(IF(A28,0,IF(LEN('Тракер за отслабване'!$B31)=0,0,'Тракер за отслабване'!$B31)),\"\")","v":"00:00:00"},{"$f":"IFERROR(IF(A28,0,IF(LEN('Тракер за отслабване'!$C31)=0,0,'Тракер за отслабване'!$C31)),\"\")","v":0},{"$nulls":4},{"$error":"#N/A"},{"$error":"#N/A"},{"$f":"IFERROR(AVERAGEIFS(Тегло[ТЕГЛО],Тегло[ДАТА],\">=\"&$H28,Тегло[ДАТА],\"<=\"&$I28),NA())","v":{"$error":"#N/A"}}]
[{"$f":"IF((LEN('Тракер за отслабване'!$C32)=0),TRUE)","v":true},{"$f":"IFERROR(IF(A29,0,IF(LEN('Тракер за отслабване'!$B32)=0,0,'Тракер за отслабване'!$B32)),\"\")","v":"00:00:00"},{"$f":"IFERROR(IF(A29,0,IF(LEN('Тракер за отслабване'!$C32)=0,0,'Тракер за отслабване'!$C32)),\"\")","v":0}]
[{"$f":"IF((LEN('Тракер за отслабване'!$C33)=0),TRUE)","v":true},{"$f":"IFERROR(IF(A30,0,IF(LEN('Тракер за отслабване'!$B33)=0,0,'Тракер за отслабване'!$B33)),\"\")","v":"00:00:00"},{"$f":"IFERROR(IF(A30,0,IF(LEN('Тракер за отслабване'!$C33)=0,0,'Тракер за отслабване'!$C33)),\"\")","v":0}]
[{"$f":"IF((LEN('Тракер за отслабване'!$C34)=0),TRUE)","v":true},{"$f":"IFERROR(IF(A31,0,IF(LEN('Тракер за отслабване'!$B34)=0,0,'Тракер за отслабване'!$B34)),\"\")","v":"00:00:00"},{"$f":"IFERROR(IF(A31,0,IF(LEN('Тракер за отслабване'!$C34)=0,0,'Тракер за отслабване'!$C34)),\"\")","v":0}]
[{"$f":"IF((LEN('Тракер за отслабване'!$C35)=0),TRUE)","v":true},{"$f":"IFERROR(IF(A32,0,IF(LEN('Тракер за отслабване'!$B35)=0,0,'Тракер за отслабване'!$B35)),\"\")","v":"00:00:00"},{"$f":"IFERROR(IF(A32,0,IF(LEN('Тракер за отслабване'!$C35)=0,0,'Тракер за отслабване'!$C35)),\"\")","v":0}]
[{"$f":"IF((LEN('Тракер за отслабване'!$C36)=0),TRUE)","v":true},{"$f":"IFERROR(IF(A33,0,IF(LEN('Тракер за отслабване'!$B36)=0,0,'Тракер за отслабване'!$B36)),\"\")","v":"00:00:00"},{"$f":"IFERROR(IF(A33,0,IF(LEN('Тракер за отслабване'!$C36)=0,0,'Тракер за отслабване'!$C36)),\"\")","v":0}]
[{"$f":"IF((LEN('Тракер за отслабване'!$C37)=0),TRUE)","v":true},{"$f":"IFERROR(IF(A34,0,IF(LEN('Тракер за отслабване'!$B37)=0,0,'Тракер за отслабване'!$B37)),\"\")","v":"00:00:00"},{"$f":"IFERROR(IF(A34,0,IF(LEN('Тракер за отслабване'!$C37)=0,0,'Тракер за отслабване'!$C37)),\"\")","v":0}]
[{"$f":"IF((LEN('Тракер за отслабване'!$C38)=0),TRUE)","v":true},{"$f":"IFERROR(IF(A35,0,IF(LEN('Тракер за отслабване'!$B38)=0,0,'Тракер за отслабване'!$B38)),\"\")","v":"00:00:00"},{"$f":"IFERROR(IF(A35,0,IF(LEN('Тракер за отслабване'!$C38)=0,0,'Тракер за отслабване'!$C38)),\"\")","v":0}]
[{"$f":"IF((LEN('Тракер за отслабване'!$C39)=0),TRUE)","v":true},{"$f":"IFERROR(IF(A36,0,IF(LEN('Тракер за отслабване'!$B39)=0,0,'Тракер за отслабване'!$B39)),\"\")","v":"00:00:00"},{"$f":"IFERROR(IF(A36,0,IF(LEN('Тракер за отслабване'!$C39)=0,0,'Тракер за отслабване'!$C39)),\"\")","v":0}]
[{"$f":"IF((LEN('Тракер за отслабване'!$C40)=0),TRUE)","v":true},{"$f":"IFERROR(IF(A37,0,IF(LEN('Тракер за отслабване'!$B40)=0,0,'Тракер за отслабване'!$B40)),\"\")","v":"00:00:00"},{"$f":"IFERROR(IF(A37,0,IF(LEN('Тракер за отслабване'!$C40)=0,0,'Тракер за отслабване'!$C40)),\"\")","v":0}]
[{"$f":"IF((LEN('Тракер за отслабване'!$C41)=0),TRUE)","v":true},{"$f":"IFERROR(IF(A38,0,IF(LEN('Тракер за отслабване'!$B41)=0,0,'Тракер за отслабване'!$B41)),\"\")","v":"00:00:00"},{"$f":"IFERROR(IF(A38,0,IF(LEN('Тракер за отслабване'!$C41)=0,0,'Тракер за отслабване'!$C41)),\"\")","v":0}]
[{"$f":"IF((LEN('Тракер за отслабване'!$C42)=0),TRUE)","v":true},{"$f":"IFERROR(IF(A39,0,IF(LEN('Тракер за отслабване'!$B42)=0,0,'Тракер за отслабване'!$B42)),\"\")","v":"00:00:00"},{"$f":"IFERROR(IF(A39,0,IF(LEN('Тракер за отслабване'!$C42)=0,0,'Тракер за отслабване'!$C42)),\"\")","v":0}]
[{"$f":"IF((LEN('Тракер за отслабване'!$C43)=0),TRUE)","v":true},{"$f":"IFERROR(IF(A40,0,IF(LEN('Тракер за отслабване'!$B43)=0,0,'Тракер за отслабване'!$B43)),\"\")","v":"00:00:00"},{"$f":"IFERROR(IF(A40,0,IF(LEN('Тракер за отслабване'!$C43)=0,0,'Тракер за отслабване'!$C43)),\"\")","v":0}]
[{"$f":"IF((LEN('Тракер за отслабване'!$C44)=0),TRUE)","v":true},{"$f":"IFERROR(IF(A41,0,IF(LEN('Тракер за отслабване'!$B44)=0,0,'Тракер за отслабване'!$B44)),\"\")","v":"00:00:00"},{"$f":"IFERROR(IF(A41,0,IF(LEN('Тракер за отслабване'!$C44)=0,0,'Тракер за отслабване'!$C44)),\"\")","v":0}]
[{"$f":"IF((LEN('Тракер за отслабване'!$C45)=0),TRUE)","v":true},{"$f":"IFERROR(IF(A42,0,IF(LEN('Тракер за отслабване'!$B45)=0,0,'Тракер за отслабване'!$B45)),\"\")","v":"00:00:00"},{"$f":"IFERROR(IF(A42,0,IF(LEN('Тракер за отслабване'!$C45)=0,0,'Тракер за отслабване'!$C45)),\"\")","v":0}]
[{"$f":"IF((LEN('Тракер за отслабване'!$C46)=0),TRUE)","v":true},{"$f":"IFERROR(IF(A43,0,IF(LEN('Тракер за отслабване'!$B46)=0,0,'Тракер за отслабване'!$B46)),\"\")","v":"00:00:00"},{"$f":"IFERROR(IF(A43,0,IF(LEN('Тракер за отслабване'!$C46)=0,0,'Тракер за отслабване'!$C46)),\"\")","v":0}]
[{"$f":"IF((LEN('Тракер за отслабване'!$C47)=0),TRUE)","v":true},{"$f":"IFERROR(IF(A44,0,IF(LEN('Тракер за отслабване'!$B47)=0,0,'Тракер за отслабване'!$B47)),\"\")","v":"00:00:00"},{"$f":"IFERROR(IF(A44,0,IF(LEN('Тракер за отслабване'!$C47)=0,0,'Тракер за отслабване'!$C47)),\"\")","v":0}]
[{"$f":"IF((LEN('Тракер за отслабване'!$C48)=0),TRUE)","v":true},{"$f":"IFERROR(IF(A45,0,IF(LEN('Тракер за отслабване'!$B48)=0,0,'Тракер за отслабване'!$B48)),\"\")","v":"00:00:00"},{"$f":"IFERROR(IF(A45,0,IF(LEN('Тракер за отслабване'!$C48)=0,0,'Тракер за отслабване'!$C48)),\"\")","v":0}]
[{"$f":"IF((LEN('Тракер за отслабване'!$C49)=0),TRUE)","v":true},{"$f":"IFERROR(IF(A46,0,IF(LEN('Тракер за отслабване'!$B49)=0,0,'Тракер за отслабване'!$B49)),\"\")","v":"00:00:00"},{"$f":"IFERROR(IF(A46,0,IF(LEN('Тракер за отслабване'!$C49)=0,0,'Тракер за отслабване'!$C49)),\"\")","v":0}]
[{"$f":"IF((LEN('Тракер за отслабване'!$C50)=0),TRUE)","v":true},{"$f":"IFERROR(IF(A47,0,IF(LEN('Тракер за отслабване'!$B50)=0,0,'Тракер за отслабване'!$B50)),\"\")","v":"00:00:00"},{"$f":"IFERROR(IF(A47,0,IF(LEN('Тракер за отслабване'!$C50)=0,0,'Тракер за отслабване'!$C50)),\"\")","v":0}]
[{"$f":"IF((LEN('Тракер за отслабване'!$C51)=0),TRUE)","v":true},{"$f":"IFERROR(IF(A48,0,IF(LEN('Тракер за отслабване'!$B51)=0,0,'Тракер за отслабване'!$B51)),\"\")","v":"00:00:00"},{"$f":"IFERROR(IF(A48,0,IF(LEN('Тракер за отслабване'!$C51)=0,0,'Тракер за отслабване'!$C51)),\"\")","v":0}]
[{"$f":"IF((LEN('Тракер за отслабване'!$C52)=0),TRUE)","v":true},{"$f":"IFERROR(IF(A49,0,IF(LEN('Тракер за отслабване'!$B52)=0,0,'Тракер за отслабване'!$B52)),\"\")","v":"00:00:00"},{"$f":"IFERROR(IF(A49,0,IF(LEN('Тракер за отслабване'!$C52)=0,0,'Тракер за отслабване'!$C52)),\"\")","v":0}]
[{"$f":"IF((LEN('Тракер за отслабване'!$C53)=0),TRUE)","v":true},{"$f":"IFERROR(IF(A50,0,IF(LEN('Тракер за отслабване'!$B53)=0,0,'Тракер за отслабване'!$B53)),\"\")","v":"00:00:00"},{"$f":"IFERROR(IF(A50,0,IF(LEN('Тракер за отслабване'!$C53)=0,0,'Тракер за отслабване'!$C53)),\"\")","v":0}]
[{"$f":"IF((LEN('Тракер за отслабване'!$C54)=0),TRUE)","v":true},{"$f":"IFERROR(IF(A51,0,IF(LEN('Тракер за отслабване'!$B54)=0,0,'Тракер за отслабване'!$B54)),\"\")","v":"00:00:00"},{"$f":"IFERROR(IF(A51,0,IF(LEN('Тракер за отслабване'!$C54)=0,0,'Тракер за отслабване'!$C54)),\"\")","v":0}]
[{"$f":"IF((LEN('Тракер за отслабване'!$C55)=0),TRUE)","v":true},{"$f":"IFERROR(IF(A52,0,IF(LEN('Тракер за отслабване'!$B55)=0,0,'Тракер за отслабване'!$B55)),\"\")","v":"00:00:00"},{"$f":"IFERROR(IF(A52,0,IF(LEN('Тракер за отслабване'!$C55)=0,0,'Тракер за отслабване'!$C55)),\"\")","v":0}]
[{"$f":"IF((LEN('Тракер за отслабване'!$C56)=0),TRUE)","v":true},{"$f":"IFERROR(IF(A53,0,IF(LEN('Тракер за отслабване'!$B56)=0,0,'Тракер за отслабване'!$B56)),\"\")","v":"00:00:00"},{"$f":"IFERROR(IF(A53,0,IF(LEN('Тракер за отслабване'!$C56)=0,0,'Тракер за отслабване'!$C56)),\"\")","v":0}]
[{"$f":"IF((LEN('Тракер за отслабване'!$C57)=0),TRUE)","v":true},{"$f":"IFERROR(IF(A54,0,IF(LEN('Тракер за отслабване'!$B57)=0,0,'Тракер за отслабване'!$B57)),\"\")","v":"00:00:00"},{"$f":"IFERROR(IF(A54,0,IF(LEN('Тракер за отслабване'!$C57)=0,0,'Тракер за отслабване'!$C57)),\"\")","v":0}]
[{"$f":"IF((LEN('Тракер за отслабване'!$C58)=0),TRUE)","v":true},{"$f":"IFERROR(IF(A55,0,IF(LEN('Тракер за отслабване'!$B58)=0,0,'Тракер за отслабване'!$B58)),\"\")","v":"00:00:00"},{"$f":"IFERROR(IF(A55,0,IF(LEN('Тракер за отслабване'!$C58)=0,0,'Тракер за отслабване'!$C58)),\"\")","v":0}]
[{"$f":"IF((LEN('Тракер за отслабване'!$C59)=0),TRUE)","v":true},{"$f":"IFERROR(IF(A56,0,IF(LEN('Тракер за отслабване'!$B59)=0,0,'Тракер за отслабване'!$B59)),\"\")","v":"00:00:00"},{"$f":"IFERROR(IF(A56,0,IF(LEN('Тракер за отслабване'!$C59)=0,0,'Тракер за отслабване'!$C59)),\"\")","v":0}]
[{"$f":"IF((LEN('Тракер за отслабване'!$C60)=0),TRUE)","v":true},{"$f":"IFERROR(IF(A57,0,IF(LEN('Тракер за отслабване'!$B60)=0,0,'Тракер за отслабване'!$B60)),\"\")","v":"00:00:00"},{"$f":"IFERROR(IF(A57,0,IF(LEN('Тракер за отслабване'!$C60)=0,0,'Тракер за отслабване'!$C60)),\"\")","v":0}]
[{"$f":"IF((LEN('Тракер за отслабване'!$C61)=0),TRUE)","v":true},{"$f":"IFERROR(IF(A58,0,IF(LEN('Тракер за отслабване'!$B61)=0,0,'Тракер за отслабване'!$B61)),\"\")","v":"00:00:00"},{"$f":"IFERROR(IF(A58,0,IF(LEN('Тракер за отслабване'!$C61)=0,0,'Тракер за отслабване'!$C61)),\"\")","v":0}]
[{"$f":"IF((LEN('Тракер за отслабване'!$C62)=0),TRUE)","v":true},{"$f":"IFERROR(IF(A59,0,IF(LEN('Тракер за отслабване'!$B62)=0,0,'Тракер за отслабване'!$B62)),\"\")","v":"00:00:00"},{"$f":"IFERROR(IF(A59,0,IF(LEN('Тракер за отслабване'!$C62)=0,0,'Тракер за отслабване'!$C62)),\"\")","v":0}]
[{"$f":"IF((LEN('Тракер за отслабване'!$C63)=0),TRUE)","v":true},{"$f":"IFERROR(IF(A60,0,IF(LEN('Тракер за отслабване'!$B63)=0,0,'Тракер за отслабване'!$B63)),\"\")","v":"00:00:00"},{"$f":"IFERROR(IF(A60,0,IF(LEN('Тракер за отслабване'!$C63)=0,0,'Тракер за отслабване'!$C63)),\"\")","v":0}]
[{"$f":"IF((LEN('Тракер за отслабване'!$C64)=0),TRUE)","v":true},{"$f":"IFERROR(IF(A61,0,IF(LEN('Тракер за отслабване'!$B64)=0,0,'Тракер за отслабване'!$B64)),\"\")","v":"00:00:00"},{"$f":"IFERROR(IF(A61,0,IF(LEN('Тракер за отслабване'!$C64)=0,0,'Тракер за отслабване'!$C64)),\"\")","v":0}]
[{"$f":"IF((LEN('Тракер за отслабване'!$C65)=0),TRUE)","v":true},{"$f":"IFERROR(IF(A62,0,IF(LEN('Тракер за отслабване'!$B65)=0,0,'Тракер за отслабване'!$B65)),\"\")","v":"00:00:00"},{"$f":"IFERROR(IF(A62,0,IF(LEN('Тракер за отслабване'!$C65)=0,0,'Тракер за отслабване'!$C65)),\"\")","v":0}]
[{"$f":"IF((LEN('Тракер за отслабване'!$C66)=0),TRUE)","v":true},{"$f":"IFERROR(IF(A63,0,IF(LEN('Тракер за отслабване'!$B66)=0,0,'Тракер за отслабване'!$B66)),\"\")","v":"00:00:00"},{"$f":"IFERROR(IF(A63,0,IF(LEN('Тракер за отслабване'!$C66)=0,0,'Тракер за отслабване'!$C66)),\"\")","v":0}]
[{"$f":"IF((LEN('Тракер за отслабване'!$C67)=0),TRUE)","v":true},{"$f":"IFERROR(IF(A64,0,IF(LEN('Тракер за отслабване'!$B67)=0,0,'Тракер за отслабване'!$B67)),\"\")","v":"00:00:00"},{"$f":"IFERROR(IF(A64,0,IF(LEN('Тракер за отслабване'!$C67)=0,0,'Тракер за отслабване'!$C67)),\"\")","v":0}]
[{"$f":"IF((LEN('Тракер за отслабване'!$C68)=0),TRUE)","v":true},{"$f":"IFERROR(IF(A65,0,IF(LEN('Тракер за отслабване'!$B68)=0,0,'Тракер за отслабване'!$B68)),\"\")","v":"00:00:00"},{"$f":"IFERROR(IF(A65,0,IF(LEN('Тракер за отслабване'!$C68)=0,0,'Тракер за отслабване'!$C68)),\"\")","v":0}]
[{"$f":"IF((LEN('Тракер за отслабване'!$C69)=0),TRUE)","v":true},{"$f":"IFERROR(IF(A66,0,IF(LEN('Тракер за отслабване'!$B69)=0,0,'Тракер за отслабване'!$B69)),\"\")","v":"00:00:00"},{"$f":"IFERROR(IF(A66,0,IF(LEN('Тракер за отслабване'!$C69)=0,0,'Тракер за отслабване'!$C69)),\"\")","v":0}]
[{"$f":"IF((LEN('Тракер за отслабване'!$C70)=0),TRUE)","v":true},{"$f":"IFERROR(IF(A67,0,IF(LEN('Тракер за отслабване'!$B70)=0,0,'Тракер за отслабване'!$B70)),\"\")","v":"00:00:00"},{"$f":"IFERROR(IF(A67,0,IF(LEN('Тракер за отслабване'!$C70)=0,0,'Тракер за отслабване'!$C70)),\"\")","v":0}]
[{"$f":"IF((LEN('Тракер за отслабване'!$C71)=0),TRUE)","v":true},{"$f":"IFERROR(IF(A68,0,IF(LEN('Тракер за отслабване'!$B71)=0,0,'Тракер за отслабване'!$B71)),\"\")","v":"00:00:00"},{"$f":"IFERROR(IF(A68,0,IF(LEN('Тракер за отслабване'!$C71)=0,0,'Тракер за отслабване'!$C71)),\"\")","v":0}]
[{"$f":"IF((LEN('Тракер за отслабване'!$C72)=0),TRUE)","v":true},{"$f":"IFERROR(IF(A69,0,IF(LEN('Тракер за отслабване'!$B72)=0,0,'Тракер за отслабване'!$B72)),\"\")","v":"00:00:00"},{"$f":"IFERROR(IF(A69,0,IF(LEN('Тракер за отслабване'!$C72)=0,0,'Тракер за отслабване'!$C72)),\"\")","v":0}]
[{"$f":"IF((LEN('Тракер за отслабване'!$C73)=0),TRUE)","v":true},{"$f":"IFERROR(IF(A70,0,IF(LEN('Тракер за отслабване'!$B73)=0,0,'Тракер за отслабване'!$B73)),\"\")","v":"00:00:00"},{"$f":"IFERROR(IF(A70,0,IF(LEN('Тракер за отслабване'!$C73)=0,0,'Тракер за отслабване'!$C73)),\"\")","v":0}]
[{"$f":"IF((LEN('Тракер за отслабване'!$C74)=0),TRUE)","v":true},{"$f":"IFERROR(IF(A71,0,IF(LEN('Тракер за отслабване'!$B74)=0,0,'Тракер за отслабване'!$B74)),\"\")","v":"00:00:00"},{"$f":"IFERROR(IF(A71,0,IF(LEN('Тракер за отслабване'!$C74)=0,0,'Тракер за отслабване'!$C74)),\"\")","v":0}]
[{"$f":"IF((LEN('Тракер за отслабване'!$C75)=0),TRUE)","v":true},{"$f":"IFERROR(IF(A72,0,IF(LEN('Тракер за отслабване'!$B75)=0,0,'Тракер за отслабване'!$B75)),\"\")","v":"00:00:00"},{"$f":"IFERROR(IF(A72,0,IF(LEN('Тракер за отслабване'!$C75)=0,0,'Тракер за отслабване'!$C75)),\"\")","v":0}]
[{"$f":"IF((LEN('Тракер за отслабване'!$C76)=0),TRUE)","v":true},{"$f":"IFERROR(IF(A73,0,IF(LEN('Тракер за отслабване'!$B76)=0,0,'Тракер за отслабване'!$B76)),\"\")","v":"00:00:00"},{"$f":"IFERROR(IF(A73,0,IF(LEN('Тракер за отслабване'!$C76)=0,0,'Тракер за отслабване'!$C76)),\"\")","v":0}]
[{"$f":"IF((LEN('Тракер за отслабване'!$C77)=0),TRUE)","v":true},{"$f":"IFERROR(IF(A74,0,IF(LEN('Тракер за отслабване'!$B77)=0,0,'Тракер за отслабване'!$B77)),\"\")","v":"00:00:00"},{"$f":"IFERROR(IF(A74,0,IF(LEN('Тракер за отслабване'!$C77)=0,0,'Тракер за отслабване'!$C77)),\"\")","v":0}]
[{"$f":"IF((LEN('Тракер за отслабване'!$C78)=0),TRUE)","v":true},{"$f":"IFERROR(IF(A75,0,IF(LEN('Тракер за отслабване'!$B78)=0,0,'Тракер за отслабване'!$B78)),\"\")","v":"00:00:00"},{"$f":"IFERROR(IF(A75,0,IF(LEN('Тракер за отслабване'!$C78)=0,0,'Тракер за отслабване'!$C78)),\"\")","v":0}]
[{"$f":"IF((LEN('Тракер за отслабване'!$C79)=0),TRUE)","v":true},{"$f":"IFERROR(IF(A76,0,IF(LEN('Тракер за отслабване'!$B79)=0,0,'Тракер за отслабване'!$B79)),\"\")","v":"00:00:00"},{"$f":"IFERROR(IF(A76,0,IF(LEN('Тракер за отслабване'!$C79)=0,0,'Тракер за отслабване'!$C79)),\"\")","v":0}]
[{"$f":"IF((LEN('Тракер за отслабване'!$C80)=0),TRUE)","v":true},{"$f":"IFERROR(IF(A77,0,IF(LEN('Тракер за отслабване'!$B80)=0,0,'Тракер за отслабване'!$B80)),\"\")","v":"00:00:00"},{"$f":"IFERROR(IF(A77,0,IF(LEN('Тракер за отслабване'!$C80)=0,0,'Тракер за отслабване'!$C80)),\"\")","v":0}]
[{"$f":"IF((LEN('Тракер за отслабване'!$C81)=0),TRUE)","v":true},{"$f":"IFERROR(IF(A78,0,IF(LEN('Тракер за отслабване'!$B81)=0,0,'Тракер за отслабване'!$B81)),\"\")","v":"00:00:00"},{"$f":"IFERROR(IF(A78,0,IF(LEN('Тракер за отслабване'!$C81)=0,0,'Тракер за отслабване'!$C81)),\"\")","v":0}]
[{"$f":"IF((LEN('Тракер за отслабване'!$C82)=0),TRUE)","v":true},{"$f":"IFERROR(IF(A79,0,IF(LEN('Тракер за отслабване'!$B82)=0,0,'Тракер за отслабване'!$B82)),\"\")","v":"00:00:00"},{"$f":"IFERROR(IF(A79,0,IF(LEN('Тракер за отслабване'!$C82)=0,0,'Тракер за отслабване'!$C82)),\"\")","v":0}]
[{"$f":"IF((LEN('Тракер за отслабване'!$C83)=0),TRUE)","v":true},{"$f":"IFERROR(IF(A80,0,IF(LEN('Тракер за отслабване'!$B83)=0,0,'Тракер за отслабване'!$B83)),\"\")","v":"00:00:00"},{"$f":"IFERROR(IF(A80,0,IF(LEN('Тракер за отслабване'!$C83)=0,0,'Тракер за отслабване'!$C83)),\"\")","v":0}]
[{"$f":"IF((LEN('Тракер за отслабване'!$C84)=0),TRUE)","v":true},{"$f":"IFERROR(IF(A81,0,IF(LEN('Тракер за отслабване'!$B84)=0,0,'Тракер за отслабване'!$B84)),\"\")","v":"00:00:00"},{"$f":"IFERROR(IF(A81,0,IF(LEN('Тракер за отслабване'!$C84)=0,0,'Тракер за отслабване'!$C84)),\"\")","v":0}]
[{"$f":"IF((LEN('Тракер за отслабване'!$C85)=0),TRUE)","v":true},{"$f":"IFERROR(IF(A82,0,IF(LEN('Тракер за отслабване'!$B85)=0,0,'Тракер за отслабване'!$B85)),\"\")","v":"00:00:00"},{"$f":"IFERROR(IF(A82,0,IF(LEN('Тракер за отслабване'!$C85)=0,0,'Тракер за отслабване'!$C85)),\"\")","v":0}]
[{"$f":"IF((LEN('Тракер за отслабване'!$C86)=0),TRUE)","v":true},{"$f":"IFERROR(IF(A83,0,IF(LEN('Тракер за отслабване'!$B86)=0,0,'Тракер за отслабване'!$B86)),\"\")","v":"00:00:00"},{"$f":"IFERROR(IF(A83,0,IF(LEN('Тракер за отслабване'!$C86)=0,0,'Тракер за отслабване'!$C86)),\"\")","v":0}]
[{"$f":"IF((LEN('Тракер за отслабване'!$C87)=0),TRUE)","v":true},{"$f":"IFERROR(IF(A84,0,IF(LEN('Тракер за отслабване'!$B87)=0,0,'Тракер за отслабване'!$B87)),\"\")","v":"00:00:00"},{"$f":"IFERROR(IF(A84,0,IF(LEN('Тракер за отслабване'!$C87)=0,0,'Тракер за отслабване'!$C87)),\"\")","v":0}]
[{"$f":"IF((LEN('Тракер за отслабване'!$C88)=0),TRUE)","v":true},{"$f":"IFERROR(IF(A85,0,IF(LEN('Тракер за отслабване'!$B88)=0,0,'Тракер за отслабване'!$B88)),\"\")","v":"00:00:00"},{"$f":"IFERROR(IF(A85,0,IF(LEN('Тракер за отслабване'!$C88)=0,0,'Тракер за отслабване'!$C88)),\"\")","v":0}]
[{"$f":"IF((LEN('Тракер за отслабване'!$C89)=0),TRUE)","v":true},{"$f":"IFERROR(IF(A86,0,IF(LEN('Тракер за отслабване'!$B89)=0,0,'Тракер за отслабване'!$B89)),\"\")","v":"00:00:00"},{"$f":"IFERROR(IF(A86,0,IF(LEN('Тракер за отслабване'!$C89)=0,0,'Тракер за отслабване'!$C89)),\"\")","v":0}]
[{"$f":"IF((LEN('Тракер за отслабване'!$C90)=0),TRUE)","v":true},{"$f":"IFERROR(IF(A87,0,IF(LEN('Тракер за отслабване'!$B90)=0,0,'Тракер за отслабване'!$B90)),\"\")","v":"00:00:00"},{"$f":"IFERROR(IF(A87,0,IF(LEN('Тракер за отслабване'!$C90)=0,0,'Тракер за отслабване'!$C90)),\"\")","v":0}]
[{"$f":"IF((LEN('Тракер за отслабване'!$C91)=0),TRUE)","v":true},{"$f":"IFERROR(IF(A88,0,IF(LEN('Тракер за отслабване'!$B91)=0,0,'Тракер за отслабване'!$B91)),\"\")","v":"00:00:00"},{"$f":"IFERROR(IF(A88,0,IF(LEN('Тракер за отслабване'!$C91)=0,0,'Тракер за отслабване'!$C91)),\"\")","v":0}]
[{"$f":"IF((LEN('Тракер за отслабване'!$C92)=0),TRUE)","v":true},{"$f":"IFERROR(IF(A89,0,IF(LEN('Тракер за отслабване'!$B92)=0,0,'Тракер за отслабване'!$B92)),\"\")","v":"00:00:00"},{"$f":"IFERROR(IF(A89,0,IF(LEN('Тракер за отслабване'!$C92)=0,0,'Тракер за отслабване'!$C92)),\"\")","v":0}]
[{"$f":"IF((LEN('Тракер за отслабване'!$C93)=0),TRUE)","v":true},{"$f":"IFERROR(IF(A90,0,IF(LEN('Тракер за отслабване'!$B93)=0,0,'Тракер за отслабване'!$B93)),\"\")","v":"00:00:00"},{"$f":"IFERROR(IF(A90,0,IF(LEN('Тракер за отслабване'!$C93)=0,0,'Тракер за отслабване'!$C93)),\"\")","v":0}]
[{"$f":"IF((LEN('Тракер за отслабване'!$C94)=0),TRUE)","v":true},{"$f":"IFERROR(IF(A91,0,IF(LEN('Тракер за отслабване'!$B94)=0,0,'Тракер за отслабване'!$B94)),\"\")","v":"00:00:00"},{"$f":"IFERROR(IF(A91,0,IF(LEN('Тракер за отслабване'!$C94)=0,0,'Тракер за отслабване'!$C94)),\"\")","v":0}]
[{"$f":"IF((LEN('Тракер за отслабване'!$C95)=0),TRUE)","v":true},{"$f":"IFERROR(IF(A92,0,IF(LEN('Тракер за отслабване'!$B95)=0,0,'Тракер за отслабване'!$B95)),\"\")","v":"00:00:00"},{"$f":"IFERROR(IF(A92,0,IF(LEN('Тракер за отслабване'!$C95)=0,0,'Тракер за отслабване'!$C95)),\"\")","v":0}]
[{"$f":"IF((LEN('Тракер за отслабване'!$C96)=0),TRUE)","v":true},{"$f":"IFERROR(IF(A93,0,IF(LEN('Тракер за отслабване'!$B96)=0,0,'Тракер за отслабване'!$B96)),\"\")","v":"00:00:00"},{"$f":"IFERROR(IF(A93,0,IF(LEN('Тракер за отслабване'!$C96)=0,0,'Тракер за отслабване'!$C96)),\"\")","v":0}]
[{"$f":"IF((LEN('Тракер за отслабване'!$C97)=0),TRUE)","v":true},{"$f":"IFERROR(IF(A94,0,IF(LEN('Тракер за отслабване'!$B97)=0,0,'Тракер за отслабване'!$B97)),\"\")","v":"00:00:00"},{"$f":"IFERROR(IF(A94,0,IF(LEN('Тракер за отслабване'!$C97)=0,0,'Тракер за отслабване'!$C97)),\"\")","v":0}]
[{"$f":"IF((LEN('Тракер за отслабване'!$C98)=0),TRUE)","v":true},{"$f":"IFERROR(IF(A95,0,IF(LEN('Тракер за отслабване'!$B98)=0,0,'Тракер за отслабване'!$B98)),\"\")","v":"00:00:00"},{"$f":"IFERROR(IF(A95,0,IF(LEN('Тракер за отслабване'!$C98)=0,0,'Тракер за отслабване'!$C98)),\"\")","v":0}]
[{"$f":"IF((LEN('Тракер за отслабване'!$C99)=0),TRUE)","v":true},{"$f":"IFERROR(IF(A96,0,IF(LEN('Тракер за отслабване'!$B99)=0,0,'Тракер за отслабване'!$B99)),\"\")","v":"00:00:00"},{"$f":"IFERROR(IF(A96,0,IF(LEN('Тракер за отслабване'!$C99)=0,0,'Тракер за отслабване'!$C99)),\"\")","v":0}]
[{"$f":"IF((LEN('Тракер за отслабване'!$C100)=0),TRUE)","v":true},{"$f":"IFERROR(IF(A97,0,IF(LEN('Тракер за отслабване'!$B100)=0,0,'Тракер за отслабване'!$B100)),\"\")","v":"00:00:00"},{"$f":"IFERROR(IF(A97,0,IF(LEN('Тракер за отслабване'!$C100)=0,0,'Тракер за отслабване'!$C100)),\"\")","v":0}]
[{"$f":"IF((LEN('Тракер за отслабване'!$C101)=0),TRUE)","v":true},{"$f":"IFERROR(IF(A98,0,IF(LEN('Тракер за отслабване'!$B101)=0,0,'Тракер за отслабване'!$B101)),\"\")","v":"00:00:00"},{"$f":"IFERROR(IF(A98,0,IF(LEN('Тракер за отслабване'!$C101)=0,0,'Тракер за отслабване'!$C101)),\"\")","v":0}]
[{"$f":"IF((LEN('Тракер за отслабване'!$C102)=0),TRUE)","v":true},{"$f":"IFERROR(IF(A99,0,IF(LEN('Тракер за отслабване'!$B102)=0,0,'Тракер за отслабване'!$B102)),\"\")","v":"00:00:00"},{"$f":"IFERROR(IF(A99,0,IF(LEN('Тракер за отслабване'!$C102)=0,0,'Тракер за отслабване'!$C102)),\"\")","v":0}]
[{"$f":"IF((LEN('Тракер за отслабване'!$C103)=0),TRUE)","v":true},{"$f":"IFERROR(IF(A100,0,IF(LEN('Тракер за отслабване'!$B103)=0,0,'Тракер за отслабване'!$B103)),\"\")","v":"00:00:00"},{"$f":"IFERROR(IF(A100,0,IF(LEN('Тракер за отслабване'!$C103)=0,0,'Тракер за отслабване'!$C103)),\"\")","v":0}]
[{"$f":"IF((LEN('Тракер за отслабване'!$C104)=0),TRUE)","v":true},{"$f":"IFERROR(IF(A101,0,IF(LEN('Тракер за отслабване'!$B104)=0,0,'Тракер за отслабване'!$B104)),\"\")","v":"00:00:00"},{"$f":"IFERROR(IF(A101,0,IF(LEN('Тракер за отслабване'!$C104)=0,0,'Тракер за отслабване'!$C104)),\"\")","v":0}]
[{"$f":"IF((LEN('Тракер за отслабване'!$C105)=0),TRUE)","v":true},{"$f":"IFERROR(IF(A102,0,IF(LEN('Тракер за отслабване'!$B105)=0,0,'Тракер за отслабване'!$B105)),\"\")","v":"00:00:00"},{"$f":"IFERROR(IF(A102,0,IF(LEN('Тракер за отслабване'!$C105)=0,0,'Тракер за отслабване'!$C105)),\"\")","v":0}]
[{"$f":"IF((LEN('Тракер за отслабване'!$C106)=0),TRUE)","v":true},{"$f":"IFERROR(IF(A103,0,IF(LEN('Тракер за отслабване'!$B106)=0,0,'Тракер за отслабване'!$B106)),\"\")","v":"00:00:00"},{"$f":"IFERROR(IF(A103,0,IF(LEN('Тракер за отслабване'!$C106)=0,0,'Тракер за отслабване'!$C106)),\"\")","v":0}]
[{"$f":"IF((LEN('Тракер за отслабване'!$C107)=0),TRUE)","v":true},{"$f":"IFERROR(IF(A104,0,IF(LEN('Тракер за отслабване'!$B107)=0,0,'Тракер за отслабване'!$B107)),\"\")","v":"00:00:00"},{"$f":"IFERROR(IF(A104,0,IF(LEN('Тракер за отслабване'!$C107)=0,0,'Тракер за отслабване'!$C107)),\"\")","v":0}]
[{"$f":"IF((LEN('Тракер за отслабване'!$C108)=0),TRUE)","v":true},{"$f":"IFERROR(IF(A105,0,IF(LEN('Тракер за отслабване'!$B108)=0,0,'Тракер за отслабване'!$B108)),\"\")","v":"00:00:00"},{"$f":"IFERROR(IF(A105,0,IF(LEN('Тракер за отслабване'!$C108)=0,0,'Тракер за отслабване'!$C108)),\"\")","v":0}]
[{"$f":"IF((LEN('Тракер за отслабване'!$C109)=0),TRUE)","v":true},{"$f":"IFERROR(IF(A106,0,IF(LEN('Тракер за отслабване'!$B109)=0,0,'Тракер за отслабване'!$B109)),\"\")","v":"00:00:00"},{"$f":"IFERROR(IF(A106,0,IF(LEN('Тракер за отслабване'!$C109)=0,0,'Тракер за отслабване'!$C109)),\"\")","v":0}]
[{"$f":"IF((LEN('Тракер за отслабване'!$C110)=0),TRUE)","v":true},{"$f":"IFERROR(IF(A107,0,IF(LEN('Тракер за отслабване'!$B110)=0,0,'Тракер за отслабване'!$B110)),\"\")","v":"00:00:00"},{"$f":"IFERROR(IF(A107,0,IF(LEN('Тракер за отслабване'!$C110)=0,0,'Тракер за отслабване'!$C110)),\"\")","v":0}]